{"text_format":"3","workbook":"xlsx","n_sheets":1,"sheets":["One Year Project Process Report"],"not_rendered":{"defined_names":28,"comments":1},"read":"whole","date_system":"1900"}

{"sheet":"One Year Project Process Report","index":0,"n_rows":198,"n_cols":32,"rows_kept":198,"merged":[[27,1,27,14]]}
[]
[]
[null,"One Year Progress Report"]
[]
[null,"PROJECT  ",{"$nulls":7},"START DATE  "]
[]
[]
[null,"PHASE","PERSON/DEPT"]
[null,"DESCRIPTION","RESPONSIBLE","OCT",{"$f":"INDEX($U$197:$AF$198,1,V198+1)","v":"NOV"},"DEC","JAN","FEB","MAR","APR","MAY","JUN","JUL","AUG","SEP"]
{"$rows_empty":186}
[{"$nulls":20},"MONTH TABLE"]
[{"$nulls":20},"JAN","FEB","MAR","APR","MAY","JUN","JUL","AUG","SEP","OCT","NOV","DEC"]
[{"$nulls":20},{"$f":"MATCH(UPPER(LEFT(TRIM(D9),3)),U197:AF197,0)-1","v":9},{"$f":"IF(U198=11,0,U198+1)","v":10},11,0,1,2,3,4,5,6,7,8]